[Event "45th FIDE Olympiad 2024"]
[Site "Budapest"]
[Date "2024.09.13"]
[Round "3.9"]
[White "Gukesh, D."]
[Black "Kozak, Adam"]
[Result "1-0"]
[ECO "E11"]
[WhiteElo "2764"]
[BlackElo "2609"]
[Annotator "TA"]
[PlyCount "107"]
[EventDate "2024.09.05"]
[EventType "team-tourn"]
[EventCountry "HUN"]
[SourceTitle "playchess.com"]
[Source "ChessBase"]
[SourceQuality "1"]
[WhiteTeam "India"]
[BlackTeam "Hungary B"]
[WhiteTeamCountry "IND"]
[TimeControl "40/5400+30:1800+30"]

{[%evp 32,107,70,60,73,66,73,53,117,79,81,70,94,87,118,119,135,121,147,137,156,159,167,163,167,149,243,243,264,266,322,332,331,324,366,225,202,208,210,168,226,214,220,225,211,214,261,273,248,245,264,277,275,244,253,262,270,316,315,302,397,410,452,468,647,626,766,763,940,918,1345,911,29982,29983,29988,29989,29991,29992]} 1. d4 {[%emt 0:00:04]} Nf6 {[%emt 0:00:59]} 2. c4 {[%emt 0:00:08]} e6 {[%emt 0:00:05]} 3. Nf3 {[%emt 0:00:06]} Bb4+ {[%emt 0:03:49]} 4. Nbd2 {[%emt 0:00:21]} d5 {[%emt 0:05:16]} 5. Qa4+ {[%emt 0:00:22]} Nc6 {[%emt 0:00:49]} 6. e3 {[%emt 0:00:20]} O-O {[%emt 0:02:21]} 7. a3 {[%emt 0:02:43]} Bxd2+ {[%emt 0:09:28] The old main line.} 8. Bxd2 {[%emt 0:00:22]} Ne4 {[%emt 0:00:05]} 9. Rd1 {[%emt 0:09:21] E11: Bogo-Indian.} Ne7 {[%emt 0:06:48]} 10. Bd3 {[%emt 0:06:44]} b6 {[%emt 0:02:40]} 11. Qc2 {[%emt 0:05:29]} Bb7 {[%emt 0:01:14]} 12. O-O {[%emt 0:03:51]} h6 $146 {[%emt 0:09:15]} ({Predecessor:} 12... Ng6 13. Be1 a5 14. Ne5 Qe7 15. f3 Nd6 16. cxd5 exd5 17. Bg3 Rfc8 18. e4 dxe4 19. fxe4 {1-0 Khalifman,A (2660)-Knaak,R (2555) Bundesliga 9899 1998 (3.3)}) 13. Bc1 {[%emt 0:09:15]} a5 {[%emt 0:02:40]} 14. b3 {[%emt 0:02:02]} Ng6 {[%emt 0:03:39]} 15. Bb2 {[%emt 0:06:07]} f5 {[%emt 0:03:52]} 16. a4 {[%emt 0:07:01]} Rf7 {[%emt 0:01:44]} 17. Ne1 {[%emt 0:04:52]} Rc8 {[%emt 0:11:56]} 18. f3 {[%emt 0:00:50]} Nf6 {[%emt 0:01:49]} 19. Be2 {[%emt 0:03:14]} Qe8 {[%emt 0:09:31]} (19... Nd7 $14) 20. Nd3 {[%emt 0:02:23]} Nd7 {[%emt 0:00:36]} 21. Rfe1 {[%emt 0:06:05]} Ne7 {[%emt 0:04:46]} 22. Bf1 {[%emt 0:05:07]} Nc6 {[%emt 0:05:15]} 23. Ba3 {[%emt 0:01:30]} Nf6 {[%emt 0:03:13]} 24. Rc1 {[%emt 0:02:01]} Rd7 {[%emt 0:01:11]} 25. Nf4 {[%emt 0:01:54]} Qf7 {[%emt 0:05:25]} 26. c5 {[%emt 0:02:35]} Rdd8 {[%emt 0:01:57]} 27. Bb5 {[%emt 0:00:29]} Nd7 {[%emt 0:01:21]} 28. Qd2 {[%emt 0:03:05]} Qf6 {[%emt 0:00:16]} (28... Ndb8 $16 29. Qe2 Na7) 29. Rc2 $18 {[%emt 0:00:58]} g5 {[%emt 0:02:25]} 30. Nd3 {[%emt 0:00:27]} Ndb8 {[%emt 0:00:32]} 31. Rec1 {[%emt 0:01:15]} Qg7 {[%emt 0:00:29]} 32. Qe1 {[%emt 0:05:22]} Kh8 {[%emt 0:00:33]} 33. Ne5 {[%emt 0:01:46]} Nxe5 {[%emt 0:00:28]} 34. dxe5 {[%emt 0:00:02]} c6 {[%emt 0:00:31]} 35. Bd3 {[%emt 0:00:05]} bxc5 {[%emt 0:00:31]} (35... b5 {keeps fighting.} 36. Qxa5 (36. axb5 cxb5 37. Bxb5 Nc6 $18) 36... bxa4 37. bxa4 g4 38. fxg4 fxg4) 36. Rxc5 $18 {[%emt 0:04:30]} Nd7 {[%emt 0:00:06]} 37. Rxa5 {[%emt 0:00:05]} Nxe5 {[%emt 0:00:26]} 38. Bf1 {[%emt 0:00:14]} Ra8 {[%emt 0:00:56]} 39. Rc2 {[%emt 0:02:37]} Ng6 {[%emt 0:00:28]} 40. Bb2 {[%emt 0:01:00]} e5 {[%emt 0:00:18]} 41. Rxa8 {[%emt 0:10:12]} Bxa8 {[%emt 0:02:47]} 42. a5 {[%emt 0:01:22]} Kh7 {[%emt 0:08:55]} 43. a6 {[%emt 0:01:21]} Rb8 {[%emt 0:05:05]} 44. b4 {[%emt 0:00:22]} Qa7 {[%emt 0:01:24]} 45. Rc5 {[%emt 0:01:37]} Qe7 {[%emt 0:05:13]} 46. Qc3 {[%emt 0:04:06]} Rd8 {[%emt 0:08:24]} 47. Qc2 {[%emt 0:02:25]} e4 {[%emt 0:01:57]} 48. fxe4 {[%emt 0:00:59]} fxe4 {[%emt 0:00:29]} 49. b5 {[%emt 0:00:20]} Qc7 {[%emt 0:00:32]} 50. bxc6 {[%emt 0:03:04]} Rf8 {[%emt 0:00:04]} 51. Bb5 {[%emt 0:01:00]} Ne7 {[%emt 0:00:56]} 52. Rxd5 {[%emt 0:00:44]} Rf7 {[%emt 0:00:30]} 53. Qxe4+ {[%emt 0:00:30]} Kg8 {[%emt 0:00:04]} 54. Qd4 {[%emt 0:00:09]} 1-0

[Event "45th FIDE Olympiad 2024"]
[Site "Budapest"]
[Date "2024.09.13"]
[Round "3.9"]
[White "Sanchez Alvarez, Roberto Carlos"]
[Black "Ebosse, Kingue Victor Patric"]
[Result "1-0"]
[ECO "A65"]
[WhiteElo "2376"]
[BlackElo "2014"]
[Annotator "RC"]
[PlyCount "77"]
[EventDate "2024.09.05"]
[EventType "team-tourn"]
[EventCountry "HUN"]
[SourceTitle "playchess.com"]
[Source "ChessBase"]
[SourceQuality "1"]
[WhiteTeam "Panama"]
[BlackTeam "Cameroon"]
[WhiteTeamCountry "PAN"]
[BlackTeamCountry "CAM"]
[TimeControl "40/5400+30:1800+30"]

1. d4 Nf6 2. c4 g6 3. Nc3 Bg7 4. e4 d6 5. f3 O-O 6. Nge2 c5 7. d5 e6 8. Ng3 exd5 9. cxd5 a6 10. a4 Nbd7 11. Be2 h5 12. Bg5 Qa5 13. Bd2 Qc7 14. Nf1 Re8 15. Ne3 Rb8 16. O-O Ne5 17. b3 Qe7 18. h3 Ned7 19. Nc4 Ne5 20. Na3 Ned7 21. Rc1 Nh7 22. f4 Bd4+ 23. Kh1 Ndf6 24. Bf3 Bd7 25. Qe2 b5 26. axb5 axb5 27. Naxb5 Bxc3 28. Nxc3 Rxb3 29. Rfe1 Qd8 30. e5 Bf5 31. Qd1 Rxc3 32. Bxc3 Ng4 33. Re2 dxe5 34. Qe1 e4 35. hxg4 hxg4 36. Bxe4 g3 37. Bxf5 Rxe2 38. Qxe2 gxf5 39. Qh5 1-0

[Event "45th FIDE Olympiad 2024"]
[Site "Budapest"]
[Date "2024.09.13"]
[Round "3.10"]
[White "Banusz, Tamas"]
[Black "Praggnanandhaa, R."]
[Result "0-1"]
[ECO "A08"]
[WhiteElo "2605"]
[BlackElo "2750"]
[Annotator "TA"]
[PlyCount "126"]
[EventDate "2024.09.05"]
[EventType "team-tourn"]
[EventCountry "HUN"]
[SourceTitle "playchess.com"]
[Source "ChessBase"]
[SourceQuality "1"]
[WhiteTeam "Hungary B"]
[BlackTeam "India"]
[BlackTeamCountry "IND"]
[TimeControl "40/5400+30:1800+30"]

{[%evp 9,126,0,0,-4,0,-3,0,0,0,-11,2,-6,-9,-14,-15,-16,-16,-15,-14,-17,-15,-12,0,-5,-8,-17,-7,-12,-12,-13,-8,-17,-17,-28,-28,-29,-32,-30,-26,-27,-15,-47,-33,-45,0,-91,-40,-102,-88,-133,-50,-47,-37,-158,-160,-155,-162,-147,-168,-166,-163,-154,-167,-155,-113,-37,-55,-83,-74,-59,0,0,0,-12,0,0,0,0,0,-68,-63,-98,-111,-140,-140,-172,-147,-156,-89,-95,-37,-96,-93,-80,-70,-62,-64,-63,-70,-85,-88,-139,-133,-356,-356,-343,-306,-469,-469,-406,-391,-412,-396,-515,-510,-520,-516,-494,-482]} 1. Nf3 {[%emt 0:00:05]} d5 {[%emt 0:00:47]} 2. g3 {[%emt 0:00:07]} c5 {[%emt 0:00:12]} 3. Bg2 {[%emt 0:00:13]} Nf6 {[%emt 0:00:06]} 4. O-O {[%emt 0:00:25]} e6 {[%emt 0:00:21]} 5. d3 {[%emt 0:03:55]} Nc6 {[%emt 0:00:54]} 6. a4 {[%emt 0:00:23]} Be7 {[%emt 0:13:44]} 7. Bf4 {[%emt 0:01:27]} Bd6 {[%emt 0:02:11]} 8. Bxd6 {[%emt 0:03:43] The position is equal.} Qxd6 {[%emt 0:00:07]} 9. Nbd2 {[%emt 0:11:48]} e5 {[%emt 0:03:10]} 10. e4 {[%emt 0:00:33]} d4 {[%emt 0:01:06]} 11. Nc4 {[%emt 0:00:49]} Qc7 {[%emt 0:09:03]} 12. c3 {[%emt 0:03:33]} Bg4 {[%emt 0:03:20]} 13. h3 {[%emt 0:13:56]} Bxf3 {[%emt 0:00:34]} 14. Bxf3 {[%emt 0:03:37]} O-O {[%emt 0:01:22]} 15. Qb3 {[%emt 0:02:24]} g6 {[%emt 0:08:01]} 16. a5 {[%emt 0:05:25]} Qe7 {[%emt 0:01:30]} 17. Kg2 {[%emt 0:05:12]} h5 {[%emt 0:04:35]} 18. h4 {[%emt 0:00:36]} Rab8 {[%emt 0:02:04]} 19. Rfc1 {[%emt 0:05:51]} Rfd8 {[%emt 0:02:07]} 20. Be2 {[%emt 0:00:27]} Ne8 {[%emt 0:03:15]} 21. Nd2 {[%emt 0:06:55]} Nc7 {[%emt 0:04:12]} 22. Nf3 {[%emt 0:01:32]} Ne6 {[%emt 0:00:09]} 23. Ra4 {[%emt 0:03:49]} b5 {[%emt 0:10:19]} 24. axb6 {[%emt 0:00:05]} Rxb6 {[%emt 0:00:04]} 25. Qa2 {[%emt 0:09:12]} Rdb8 {[%emt 0:07:24]} 26. Rc2 {[%emt 0:00:02]} a5 {[%emt 0:00:57]} 27. Nd2 {[%emt 0:01:15]} (27. Qd5 $11 {remains equal.}) 27... Rb5 {[%emt 0:01:12]} (27... g5 $17 28. Bxh5 gxh4) 28. Bf1 {[%emt 0:04:03]} (28. Qa1 $15) 28... Qf6 {[%emt 0:04:13]} 29. Nf3 {[%emt 0:03:00]} Kg7 {[%emt 0:00:40]} (29... g5 $1 $17 {White must now prevent ...gxh4.} 30. hxg5 Nxg5) 30. Be2 $15 {[%emt 0:00:35]} Qe7 {[%emt 0:02:33]} 31. Bf1 {[%emt 0:00:59]} ({Better is} 31. Bd1 $15) 31... Qb7 $17 {[%emt 0:02:46][%cal Rb5b2]} 32. Qd5 {[%emt 0:01:41]} c4 {[%emt 0:02:38]} 33. Qxc4 {[%emt 0:00:02]} Rc5 {[%emt 0:00:05]} 34. Qa2 {[%emt 0:00:08] [#]} Nb4 $1 {[%emt 0:00:03][%mdl 512]} 35. cxb4 {[%emt 0:01:03]} Rxc2 {[%emt 0:00:02]} 36. Nxe5 {[%emt 0:00:47]} Qe7 {[%emt 0:04:11] Black is more active.} (36... axb4 37. Ra7 b3 38. Qa3 $16) 37. Qb1 {[%emt 0:01:50]} Rc7 {[%emt 0:01:34]} 38. Rxa5 {[%emt 0:01:27]} (38. bxa5 $2 Nc5 39. Nxg6 fxg6 $19) 38... Qxb4 {[%emt 0:02:52]} 39. Ra2 {[%emt 0:00:23]} Rbb7 {[%emt 0:00:53]} (39... Rb5 $1 $15 40. Nc4 g5 41. hxg5 Rxg5) 40. Nc4 $11 {[%emt 0:02:21]} Ra7 {[%emt 0:00:12]} 41. Qa1 {[%emt 0:34:43]} Qb8 {[%emt 0:08:24]} (41... Rxa2 {keeps more tension.} 42. Qxa2 Qe1 43. Qa3 g5) 42. Rxa7 {[%emt 0:00:00]} Rxa7 {[%emt 0:00:08]} 43. Qd1 {[%emt 0:00:00]} Qa8 {[%emt 0:02:55]} 44. Qf3 {[%emt 0:00:00]} ({White should play} 44. f4 $11) 44... Ra1 $15 {[%emt 0:03:10][%mdl 1024] Black has compensation.} 45. Be2 {[%emt 0:00:00]} Qa2 $1 {[%emt 0:10:12]} 46. Nd6 {[%emt 0:00:00] [#]} Nd8 {[%emt 0:02:12]} (46... Qxb2 47. Qxf7+ (47. Nxf7 $2 Qb1 $19) 47... Kh8 48. Qe8+ (48. Qxe6 Qxe2 49. Qc8+ Kh7 $16) (48. Qxg6 Nf4+ 49. gxf4 Rg1+ 50. Kxg1 Qc1+ 51. Kh2 Qh1+ 52. Kxh1 $11) 48... Kg7 49. Qe7+ Kh8 50. Nf7+ (50. Qxe6 Qxe2 51. Qf6+ Kh7 $11) 50... Kg8 51. Nh6+ (51. Qxe6 Kg7 $18) 51... Kh8 52. Qe8+ (52. Qxe6 Rg1+ 53. Kf3 Qb8 $18) 52... Kg7 53. Qg8+ Kf6 54. Qf7+ Ke5 55. Qe7 (55. Qxg6 Kd6 $18)) 47. Kh2 {[%emt 0:00:00]} Qb1 {[%emt 0:04:12] And now ...Qg1+ would win.} (47... Qxb2 48. Qf4 $17) 48. Kh3 {[%emt 0:00:00]} Qh1+ {[%emt 0:03:18]} ({Inferior is} 48... Qxb2 49. e5 $11) (48... Kf8 $142 {[%cal Ob1g1]} 49. b4 Qg1 (49... Qxb4 $2 50. Qf6 $18)) 49. Qxh1 $17 {[%emt 0:00:00]} Rxh1+ {[%emt 0:00:05][%mdl 4096] Endgame. KRN-KBN} 50. Kg2 {[%emt 0:00:05]} Re1 {[%emt 0:00:03]} 51. Bf1 {[%emt 0:01:35]} Nc6 {[%emt 0:00:11]} 52. Nc4 {[%emt 0:00:40]} Nb4 {[%emt 0:01:54]} 53. f4 {[%emt 0:00:17]} f6 {[%emt 0:02:13]} 54. Kf2 {[%emt 0:00:14]} Rd1 {[%emt 0:00:37]} 55. e5 {[%emt 0:00:57] [#]} (55. f5 $142) 55... f5 $1 {[%emt 0:01:06]} ({Of course not} 55... Nxd3+ $6 56. Ke2 Re1+ 57. Kxd3 $11) 56. Bg2 $2 {[%emt 0:02:12] White does not recover from this.} (56. Be2 $17 {might work better.} Nxd3+ 57. Kf3 Ne1+ 58. Kf2) 56... Rxd3 $19 {[%emt 0:01:07]} 57. Bf3 {[%emt 0:00:01]} Na6 {[%emt 0:00:33]} 58. Be2 {[%emt 0:01:39]} (58. e6 {only move.} Kf6 59. Ne5 Rd2+ 60. Be2) 58... Rb3 {[%emt 0:00:03]} 59. Bd1 {[%emt 0:00:44]} Rb4 {[%emt 0:00:46]} 60. b3 {[%emt 0:00:01]} Nc5 {[%emt 0:00:09]} 61. Nd2 {[%emt 0:00:01]} Ne4+ {[%emt 0:01:38] Black is clearly winning.} 62. Ke1 {[%emt 0:00:05]} Nxg3 {[%emt 0:00:10]} 63. Nc4 {[%emt 0:02:25]} Ne4 {[%emt 0:00:18] Weighted Error Value: White=0.25 (precise) /Black=0.08 (flawless) .  Loses game:     	White=1     	---        Mistake:       	White=6     	Black=4      Inaccurate:     	White=5     	---        OK:         	White=25    	Black=26     Best:        	White=3     	Black=6      Strong:       	---       	Black=2      Brilliant:      	---       	Black=1} 0-1

[Event "45th FIDE Olympiad 2024"]
[Site "Budapest"]
[Date "2024.09.13"]
[Round "3.10"]
[White "Zebaze, Dongmo Loic Dylane"]
[Black "Delgado Rosas, Alex Antonio"]
[Result "0-1"]
[ECO "D00"]
[WhiteElo "1914"]
[BlackElo "2157"]
[Annotator "RC"]
[PlyCount "81"]
[EventDate "2024.09.05"]
[EventType "team-tourn"]
[EventCountry "HUN"]
[SourceTitle "playchess.com"]
[Source "ChessBase"]
[SourceQuality "1"]
[WhiteTeam "Cameroon"]
[BlackTeam "Panama"]
[WhiteTeamCountry "CAM"]
[BlackTeamCountry "PAN"]
[TimeControl "40/5400+30:1800+30"]

1. d4 Nf6 2. Nc3 d5 3. Bf4 a6 4. e3 c5 5. Nf3 cxd4 6. exd4 Nc6 7. Ne5 e6 8. a3 Bd6 9. g4 Qc7 10. Nxc6 Bxf4 11. Nb4 h5 12. gxh5 Rxh5 13. h3 Bd7 14. Nd3 Rh4 15. Rg1 Rc8 16. Nxf4 Qxf4 17. Rxg7 Qh6 18. Rg3 Ke7 19. Qd3 Ne4 20. Nxe4 Rxe4+ 21. Re3 Bb5 22. Qb3 Rxe3+ 23. Qxe3 Qxe3+ 24. fxe3 Bxf1 25. Kxf1 Rxc2 26. b4 Kf6 27. Ke1 Rh2 28. Rc1 Rh1+ 29. Kd2 Rxc1 30. Kxc1 Kg5 31. Kd1 Kh4 32. Ke2 Kxh3 33. Kf3 b5 34. e4 dxe4+ 35. Kxe4 Kg4 36. Ke5 Kg5 37. Kd6 Kf5 38. Ke7 Ke4 39. Kxf7 Kxd4 40. Kxe6 Kc4 41. Ke5 0-1

[Event "45th FIDE Olympiad 2024"]
[Site "Budapest"]
[Date "2024.09.13"]
[Round "3.11"]
[White "Erigaisi, Arjun"]
[Black "Prohaszka, Peter"]
[Result "1-0"]
[ECO "D35"]
[WhiteElo "2778"]
[BlackElo "2542"]
[Annotator "TA"]
[PlyCount "67"]
[EventDate "2024.09.05"]
[EventType "team-tourn"]
[EventCountry "HUN"]
[SourceTitle "playchess.com"]
[Source "ChessBase"]
[SourceQuality "1"]
[WhiteTeam "India"]
[BlackTeam "Hungary B"]
[WhiteTeamCountry "IND"]
[TimeControl "40/5400+30:1800+30"]

{[%evp 9,66,10,13,0,0,2,0,0,14,0,17,7,22,-6,27,25,58,59,64,71,61,67,60,54,42,52,38,52,75,15,87,87,98,82,109,50,93,39,97,92,530,526,509,500,680,678,714,704,914,895,29989,29990,29990,29991,29997,29998,29998,29999,29999]} 1. c4 {[%emt 0:00:10]} e6 {[%emt 0:00:30]} 2. Nc3 {[%emt 0:00:22]} d5 {[%emt 0:00:06]} 3. d4 {[%emt 0:00:04]} Nf6 {[%emt 0:00:20]} 4. Nf3 {[%emt 0:00:17]} Be7 {[%emt 0:01:00]} 5. cxd5 {[%emt 0:00:25]} exd5 {[%emt 0:00:06]} 6. Bf4 {[%emt 0:00:05]} Nh5 {[%emt 0:06:33]} 7. Bd2 {[%emt 0:00:42]} O-O {[%emt 0:01:57]} 8. e3 {[%emt 0:00:06] The position is equal.} Nf6 {[%emt 0:14:42]} 9. Bd3 {[%emt 0:00:09]} Nbd7 {[%emt 0:04:07]} 10. Qc2 {[%emt 0:04:49]} c6 {[%emt 0:10:53]} 11. g4 {[%emt 0:15:04]} Ne4 {[%emt 0:22:08]} 12. h4 {[%emt 0:00:16]} Re8 {[%emt 0:08:32]} 13. g5 {[%emt 0:02:15]} f5 {[%emt 0:14:09]} 14. gxf6 $1 {[%emt 0:00:22]} Ndxf6 {[%emt 0:01:25]} 15. Ng5 {[%emt 0:01:13]} h6 $1 {[%emt 0:01:30]} 16. Ncxe4 {[%emt 0:01:59]} dxe4 {[%emt 0:00:17]} 17. Nxe4 {[%emt 0:01:09]} Nxe4 {[%emt 0:00:29]} 18. Bxe4 {[%emt 0:01:37]} Be6 {[%emt 0:01:24]} 19. Rg1 {[%emt 0:02:58]} (19. Bc3 $16) 19... Bf6 {[%emt 0:02:36]} (19... Bxh4 $11 20. O-O-O Qe7 (20... Bxf2 21. Bh7+ Kh8 22. Rxg7 $16) (20... Bxa2 21. d5 $14)) 20. O-O-O $16 {[%emt 0:04:08]} Qe7 {[%emt 0:00:08]} 21. Bg6 {[%emt 0:05:50] White is more active.} Red8 {[%emt 0:00:05]} 22. Bc3 {[%emt 0:01:30]} (22. Kb1 $16) 22... a5 {[%emt 0:03:41]} 23. Bf5 {[%emt 0:15:28]} (23. b3 $16) 23... Bxa2 {[%emt 0:02:27] [#]} ({Black should try} 23... Bxf5 $1 $14 24. Qxf5 Rd5) 24. Rg6 $1 {[%emt 0:00:06][%cal Od4d5] Threatens to win with d5!} Rf8 $2 {[%emt 0:02:07][%mdl 8192] A mistake that costs the game.} (24... Bxh4 $2 25. d5 cxd5 26. Be6+ $18 (26. Bxg7 d4 $18) (26. Rxg7+ Kf8 $18) (26. Bxg7 Kf7 $18) (26. Rxg7+ Qxg7 27. Be6+ Kh8 $18)) (24... a4 $16 {is tougher.}) 25. Rdg1 $18 {[%emt 0:00:40]} Kh8 {[%emt 0:01:11][%cal Oa2g8] [#]} 26. e4 $1 {[%emt 0:00:07][%cal Be3e4,Be4e5][%mdl 32]} Rf7 {[%emt 0:00:35]} 27. Qd2 {[%emt 0:00:32][%cal Og6h6] Black must now prevent Rxh6+!} Qf8 {[%emt 0:00:25]} 28. d5 {[%emt 0:07:04] And now e5 would win.} (28. Bxa5 c5 $14) 28... cxd5 {[%emt 0:00:31]} 29. e5 {[%emt 0:00:04]} (29. Bxa5 $2 {perishes.} dxe4 (29... Bxh4 $2 {too greedy.} 30. Rxg7 Qxg7 31. Rxg7 $18) 30. Bxe4 Rc8+ (30... Bxh4 31. Bc3 $16) 31. Bc3 Be5 $19 (31... Bxh4 32. Rxh6+ Kg8 33. Rh8+ Kxh8 34. Qh6+ Kg8 35. Qh7#) (31... Bxc3 $2 32. bxc3 Rxf2 33. Qd4 $19) (31... Bxh4 32. Rxh6+ Kg8 33. Rh8+ Kxh8 34. Qh6+ Kg8 35. Qh7#) (31... Bxc3 $2 32. bxc3 Qa3+ 33. Kd1 $19)) 29... Bxh4 {[%emt 0:00:34]} 30. e6 {[%emt 0:00:07] White mates.} Rf6 {[%emt 0:00:28]} 31. e7 {[%emt 0:00:38]} Qxe7 {[%emt 0:00:32] [#]} 32. Qxh6+ $3 {[%emt 0:00:26][%mdl 512]} gxh6 {[%emt 0:00:29]} 33. Rxh6+ {[%emt 0:00:05]} Qh7 {[%emt 0:00:04]} 34. Rxh7# {[%emt 0:00:10] Weighted Error Value: White=0.11 (very precise) /Black=0.71.  Loses game:     	---       	Black=1      Mistake:       	White=3     	Black=2      Inaccurate:     	White=1     	Black=4      OK:         	White=8     	Black=5      Best:        	White=3     	Black=1      Strong:       	White=3     	Black=1} 1-0

[Event "45th FIDE Olympiad 2024"]
[Site "Budapest"]
[Date "2024.09.13"]
[Round "3.11"]
[White "Baules Rodriguez, Jorge Luis"]
[Black "Amba, Oyon Marius Claude"]
[Result "1-0"]
[ECO "B43"]
[WhiteElo "2271"]
[BlackElo "1975"]
[Annotator "RC"]
[PlyCount "119"]
[EventDate "2024.09.05"]
[EventType "team-tourn"]
[EventCountry "HUN"]
[SourceTitle "playchess.com"]
[Source "ChessBase"]
[SourceQuality "1"]
[WhiteTeam "Panama"]
[BlackTeam "Cameroon"]
[WhiteTeamCountry "PAN"]
[BlackTeamCountry "CAM"]
[TimeControl "40/5400+30:1800+30"]

1. e4 c5 2. Nf3 e6 3. d4 cxd4 4. Nxd4 a6 5. Nc3 Qc7 6. Bd3 Nf6 7. Qe2 Bc5 8. Nb3 Bb4 9. Bd2 Nc6 10. a3 Bd6 11. g3 Be7 12. f4 d6 13. g4 h6 14. O-O b5 15. Rae1 b4 16. axb4 e5 17. Nd5 Nxd5 18. exd5 Nxb4 19. Bxb4 Qb6+ 20. Bc5 dxc5 21. Bc4 O-O 22. fxe5 Bd7 23. Qe4 Bb5 24. Re2 Rab8 25. Kh1 Bxc4 26. Qxc4 Qg6 27. c3 Qb6 28. Nc1 Qg6 29. Nd3 Qb6 30. Ref2 Bh4 31. Rf3 Bg5 32. R3f2 Bh4 33. Re2 Be7 34. Kg2 Rbc8 35. Ref2 Qb7 36. Kg1 Bg5 37. Re2 Rfd8 38. d6 Rf8 39. Nxc5 Qa7 40. b4 a5 41. Kg2 axb4 42. cxb4 Qa8+ 43. Qe4 Qa3 44. Rf3 Qc1 45. Qd5 Bh4 46. e6 fxe6 47. Nxe6 Rxf3 48. Qxf3 Qd1 49. Rf2 Qxf3+ 50. Rxf3 Rc2+ 51. Kh3 Re2 52. Kxh4 Rxe6 53. Rd3 Re8 54. d7 Rd8 55. b5 Kf7 56. b6 g6 57. b7 Ke7 58. Re3+ Kf6 59. Re8 g5+ 60. Kg3 1-0

[Event "45th FIDE Olympiad 2024"]
[Site "Budapest"]
[Date "2024.09.13"]
[Round "3.12"]
[White "Papp, Gabor"]
[Black "Vidit, Santosh Gujrathi"]
[Result "1/2-1/2"]
[ECO "C07"]
[WhiteElo "2550"]
[BlackElo "2720"]
[Annotator "TA"]
[PlyCount "52"]
[EventDate "2024.09.05"]
[EventType "team-tourn"]
[EventCountry "HUN"]
[SourceTitle "playchess.com"]
[Source "ChessBase"]
[SourceQuality "1"]
[WhiteTeam "Hungary B"]
[BlackTeam "India"]
[BlackTeamCountry "IND"]
[TimeControl "40/5400+30:1800+30"]

{[%evp 10,52,28,15,11,8,25,8,12,15,10,9,40,0,0,0,0,0,3,0,0,0,0,0,0,0,0,0,0,-78,0,0,0,0,0,0,0,0,0,0,0,0,0,0,0]} 1. e4 {[%emt 0:00:04]} e6 {[%emt 0:00:45]} 2. d4 {[%emt 0:00:16]} d5 {[%emt 0:00:07]} 3. Nd2 {[%emt 0:00:53]} c5 {[%emt 0:00:12]} 4. exd5 {[%emt 0:00:24]} Qxd5 {[%emt 0:00:15]} 5. Ngf3 {[%emt 0:00:08]} cxd4 {[%emt 0:00:18]} 6. Bc4 {[%emt 0:00:36]} Qd7 {[%emt 0:01:16]} 7. O-O {[%emt 0:03:12]} Nc6 {[%emt 0:00:07]} 8. Nb3 {[%emt 0:00:05]} a6 {[%emt 0:00:28]} 9. Nbxd4 {[%emt 0:00:56]} Nxd4 {[%emt 0:00:20]} 10. Nxd4 {[%emt 0:00:08]} Qc7 {[%emt 0:00:19] Prevents Bf4} 11. Bd3 {[%emt 0:00:37]} Nf6 {[%emt 0:07:50]} 12. Re1 {[%emt 0:01:39]} Bd6 {[%emt 0:00:14]} 13. h3 {[%emt 0:01:52]} O-O {[%emt 0:00:43]} 14. Bg5 {[%emt 0:08:07]} Bh2+ {[%emt 0:01:22]} (14... Nd5 {keeps more tension.} 15. Qh5 Bh2+ 16. Kh1 g6) 15. Kh1 {[%emt 0:02:04]} Be5 {[%emt 0:00:31]} 16. Rxe5 {[%emt 0:11:34]} Qxe5 {[%emt 0:00:11]} 17. f4 {[%emt 0:00:04]} Qc7 {[%emt 0:43:10]} (17... Qxd4 $2 {too greedy.} 18. Bxh7+ Nxh7 19. Qxd4 $18) 18. Bxf6 {[%emt 0:00:31]} gxf6 {[%emt 0:00:10]} 19. Qg4+ {[%emt 0:04:24]} (19. Qh5 $5 f5 $8 20. Bxf5 exf5 21. Qg5+ Kh8 22. Qf6+ Kg8 23. Qg5+ Kh8 24. Qf6+ Kg8 25. Qg5+ $11) 19... Kh8 {[%emt 0:00:06] aiming for ...f5.} 20. Qh4 {[%emt 0:00:04][%csl Gd3,LRf6,LRh7][%cal Rh4h7] [#] The position is equal.} f5 {[%emt 0:00:04] ...Rg8 is the strong threat.} 21. Qf6+ {[%emt 0:01:36]} Kg8 {[%emt 0:00:04][%cal Oc7d8]} 22. Nxf5 {[%emt 0:04:22]} exf5 {[%emt 0:00:07]} 23. Qg5+ {[%emt 0:00:03]} Kh8 {[%emt 0:00:04]} 24. Qf6+ {[%emt 0:00:02]} Kg8 {[%emt 0:00:03]} 25. Qg5+ {[%emt 0:00:04]} Kh8 {[%emt 0:00:03]} 26. Qf6+ {[%emt 0:00:03]} Kg8 {[%emt 0:00:23] Not much happened in this game.   Weighted Error Value: White=0.08 (flawless) /Black=0.04 (flawless) .  Inaccurate:     	White=1     	Black=2      OK:         	White=11    	Black=5      Best:        	White=3     	Black=1} 1/2-1/2

[Event "45th FIDE Olympiad 2024"]
[Site "Budapest"]
[Date "2024.09.13"]
[Round "3.12"]
[White "Makem, Pierre"]
[Black "Schnell, Sebastian Narayana"]
[Result "1/2-1/2"]
[ECO "D00"]
[WhiteElo "1860"]
[BlackElo "2059"]
[Annotator "NA RC"]
[PlyCount "108"]
[EventDate "2024.09.05"]
[EventType "team-tourn"]
[EventCountry "HUN"]
[SourceTitle "playchess.com"]
[Source "ChessBase"]
[SourceQuality "1"]
[WhiteTeam "Cameroon"]
[BlackTeam "Panama"]
[WhiteTeamCountry "CAM"]
[BlackTeamCountry "PAN"]
[TimeControl "40/5400+30:1800+30"]

1. d4 Nf6 2. Bf4 d5 3. e3 e6 4. Nd2 a6 5. Bd3 b5 6. g4 h6 7. h4 c5 8. c3 c4 9. Bc2 Bb7 10. Qf3 Nfd7 11. Qg3 b4 12. Bc7 Qc8 13. Ngf3 a5 14. Ba4 Bc6 15. Bc2 Ra7 16. Bf4 Rb7 17. O-O Be7 18. e4 Na6 19. Rae1 bxc3 20. bxc3 Rb2 21. Bb1 Nb6 22. Ne5 g5 23. Be3 Nd7 24. hxg5 hxg5 25. Ndf3 Rg8 26. Nxd7 Qxd7 27. Ne5 Qc7 28. Qf3 Bd6 29. Nxc6 Qxc6 30. exd5 Qd7 31. Qf6 Qe7 32. Qh6 Qf8 33. Bxg5 Qxh6 34. Bxh6 Rxg4+ 35. Kh1 Rh4+ 36. Kg2 Rxh6 37. dxe6 fxe6 38. Be4 Ke7 39. Rh1 Rxh1 40. Rxh1 Rxa2 41. Rh7+ Kf6 42. Rh6+ Kf7 43. d5 Nc7 44. dxe6+ Ke7 45. Bf5 Bc5 46. Rh7+ Kf6 47. Rf7+ Kg5 48. Bb1 Rxf2+ 49. Rxf2 Bxf2 50. Kxf2 Kf6 51. Ba2 Kxe6 52. Bxc4+ Kd6 53. Ke2 Kc5 54. Kd3 Na8 1/2-1/2